fUST/lending_fUST_20240517
["ID","MTS","AMOUNT","RATE_DAILY","PERIOD"]
[327253283,1715931041589,-500.0,0.00016986,2]
[327253285,1715931041598,-500.0,0.00016986,2]
[327253287,1715931041610,-500.0,0.00016986,2]
[327253289,1715931041620,-500.0,0.00016986,2]
[327253291,1715931041629,-500.0,0.00016986,2]
[327253293,1715931041639,-500.0,0.00016986,2]
[327253294,1715931041648,-500.0,0.00016986,2]
[327253296,1715931041658,-500.0,0.00016986,4]
[327253298,1715931041668,-500.0,0.00016986,2]
[327253300,1715931041677,-626.29,0.00016986,2]
[327253302,1715931041686,-500.0,0.00016986,2]
[327253304,1715931041695,-500.0,0.00016986,2]
[327253306,1715931041704,-2048.38,0.00016986,2]
[327253308,1715931041713,-745.85,0.00016986,2]
[327253310,1715931041722,-500.0,0.00016986,2]
[327253312,1715931041732,-967.73,0.00016986,2]
[327253314,1715931041741,-500.0,0.00016986,2]
[327253316,1715931041751,-591.74,0.00016986,2]
[327253318,1715931041760,-500.0,0.00016986,2]
[327253320,1715931041769,-500.0,0.00016986,2]
[327253322,1715931041779,-3187.92,0.00016986,2]
[327253324,1715931041788,-500.0,0.00016986,2]
[327253326,1715931041798,-500.0,0.00016986,2]
[327253328,1715931041807,-2054.48,0.00016986,2]
[327253330,1715931041816,-500.0,0.00016986,2]
[327253332,1715931041825,-500.0,0.00016986,2]
[327253334,1715931041834,-500.0,0.00016986,2]
[327253336,1715931041843,-500.0,0.00016986,2]
[327253338,1715931041853,-541.52,0.00016986,2]
[327253339,1715931041866,-1029.14,0.00016986,2]
[327253341,1715931041875,-500.0,0.00016986,2]
[327253343,1715931041885,-500.0,0.00016986,2]
[327253345,1715931041894,-8499.3,0.00016986,2]
[327253347,1715931041904,-500.0,0.00016986,2]
[327253349,1715931041913,-500.0,0.00016986,2]
[327253351,1715931041922,-500.0,0.00016986,2]
[327253353,1715931041931,-570.11191803,0.00016986,2]
[327253355,1715931041940,-500.0,0.00016986,2]
[327253357,1715931041950,-500.0,0.00016986,2]
[327253359,1715931041959,-495.0,0.00017041,2]
[327253361,1715931041968,-500.11958888,0.00017092,2]
[327253363,1715931041978,-152.34842249,0.0001716,2]
[327253365,1715931041987,-6894.221916,0.00017259,2]
[327253367,1715931041996,-1535.99740644,0.0001726,3]
[327253369,1715931042006,-500.0,0.0001726,2]
[327253371,1715931042015,-353.10415503,0.0001726,2]
[327253373,1715931042024,-500.0,0.0001726,2]
[327253375,1715931042033,-500.0,0.0001726,2]
[327253377,1715931042042,-500.0,0.0001726,2]
[327253379,1715931042051,-500.0,0.0001726,2]
[327253381,1715931042060,-500.0,0.0001726,2]
[327253383,1715931042069,-647.44371631,0.0001726,4]
[327253385,1715931042078,-500.0,0.0001726,2]
[327253387,1715931042087,-626.29,0.0001726,2]
[327253389,1715931042096,-500.0,0.0001726,2]
[327253390,1715931042107,-500.0,0.0001726,2]
[327253392,1715931042116,-2048.38,0.0001726,2]
[327253394,1715931042125,-745.85,0.0001726,2]
[327253396,1715931042134,-500.0,0.0001726,2]
[327253398,1715931042143,-967.73,0.0001726,2]
[327253400,1715931042153,-591.74,0.0001726,2]
[327253402,1715931042162,-500.0,0.0001726,2]
[327253404,1715931042171,-500.0,0.0001726,2]
[327253406,1715931042180,-3187.92,0.0001726,2]
[327253408,1715931042190,-500.0,0.0001726,2]
[327253410,1715931042199,-500.0,0.0001726,2]
[327253412,1715931042208,-2054.48,0.0001726,2]
[327253414,1715931042218,-500.0,0.0001726,2]
[327253416,1715931042228,-500.0,0.0001726,2]
[327253418,1715931042238,-500.0,0.0001726,2]
[327253420,1715931042247,-500.0,0.0001726,2]
[327253422,1715931042256,-541.52,0.0001726,2]
[327253424,1715931042266,-1029.14,0.0001726,2]
[327253426,1715931042275,-500.0,0.0001726,2]
[327253429,1715931042284,-500.0,0.0001726,2]
[327253431,1715931042293,-8499.3,0.0001726,2]
[327253433,1715931042300,-500.0,0.0001726,2]
[327253435,1715931042309,-500.0,0.0001726,2]
[327253436,1715931042321,-500.0,0.0001726,2]
[327253438,1715931042330,-500.0,0.0001726,2]
[327253440,1715931042339,-500.0,0.0001726,2]
[327253442,1715931042348,-359.38021758,0.00017533,2]
[327253443,1715931042359,-1449.81188868,0.00017533,2]
[327253444,1715931042368,-500.0,0.00017534,2]
[327253445,1715931042378,-500.0,0.00017534,2]
[327253446,1715931042387,-500.0,0.00017534,2]
[327253447,1715931042399,-500.0,0.00017534,2]
[327253448,1715931042408,-500.0,0.00017534,2]
[327253449,1715931042418,-500.0,0.00017534,2]
[327253450,1715931042427,-500.0,0.00017534,2]
[327253451,1715931042436,-626.29,0.00017534,2]
[327253452,1715931042446,-500.0,0.00017534,2]
[327253453,1715931042457,-500.0,0.00017534,2]
[327253454,1715931042466,-2048.38,0.00017534,2]
[327253455,1715931042475,-745.85,0.00017534,2]
[327253456,1715931042485,-500.0,0.00017534,2]
[327253457,1715931042494,-967.73,0.00017534,2]
[327253458,1715931042504,-591.74,0.00017534,2]
[327253459,1715931042513,-500.0,0.00017534,2]
[327253460,1715931042522,-500.0,0.00017534,2]
[327253461,1715931042531,-3187.92,0.00017534,2]
[327253462,1715931042541,-500.0,0.00017534,2]
[327253463,1715931042550,-500.0,0.00017534,2]
[327253464,1715931042559,-2054.48,0.00017534,2]
[327253465,1715931042569,-500.0,0.00017534,2]
[327253466,1715931042579,-500.0,0.00017534,2]
[327253467,1715931042588,-500.0,0.00017534,2]
[327253468,1715931042598,-500.0,0.00017534,2]
[327253469,1715931042608,-541.52,0.00017534,2]
[327253470,1715931042618,-1029.14,0.00017534,2]
[327253471,1715931042627,-500.0,0.00017534,2]
[327253472,1715931042636,-500.0,0.00017534,2]
[327253473,1715931042645,-6093.20797037,0.00017534,2]
[327253534,1715931047343,288.62,0.00010959,2]
[327253535,1715931057890,240.51,0.00010959,2]
[327253536,1715931068382,200.43,0.00010959,2]
[327253537,1715931076129,1902.53103535,0.00010959,2]
[327253538,1715931076157,17344.89209781,0.00010959,2]
[327253539,1715931077369,364.8633841,0.00010959,2]
[327253540,1715931078771,516.9715254,0.00010959,2]
[327253541,1715931079190,167.02,0.00010959,2]
[327253542,1715931081929,281.51026705,0.00010959,2]
[327253543,1715931089959,835.15,0.00010959,2]
[327253544,1715931090124,19247.42313316,0.00010959,2]
[327253545,1715931092767,430.8096045,0.00010959,2]
[327253546,1715931097366,364.8633841,0.00010959,2]
[327253547,1715931098031,281.51026705,0.00010959,2]
[327253548,1715931106138,17233.24387985,0.00010959,2]
[327253549,1715931112771,430.8096045,0.00010959,2]
[327253550,1715931112971,771.70098746,0.0001,2]
[327253551,1715931114017,154.7215013,9.999e-05,2]
[327253552,1715931114768,370.90420451,9.999e-05,2]
[327253553,1715931115875,1581.20220046,9.999e-05,2]
[327253554,1715931117836,283.54671049,0.000137,2]
[327253555,1715931117872,521.21402222,9.999e-05,2]
[327253556,1715931117902,364.8633841,0.00010959,2]
[327253557,1715931118822,154.7215013,9.999e-05,2]
[327253558,1715931119929,279.83488015,0.00010959,2]
[327253559,1715931120127,410.4004372,9.999e-05,2]
[327253560,1715931124169,154.7215013,9.999e-05,2]
[327253561,1715931126442,1084.37016178,0.000138,2]
[327253562,1715931128877,224.45180395,0.00010959,2]
[327253563,1715931135103,11020.78651959,0.000265,120]
[327253564,1715931137371,364.8633841,0.00010959,2]
[327253567,1715931146765,224.45180395,0.00010959,2]
[327253571,1715931157376,274.3181552,0.00010959,2]
[327253573,1715931162773,224.45180395,0.00010959,2]
[327253575,1715931180769,224.45180395,0.00010959,2]
[327253576,1715931198784,224.45180395,0.00010959,2]
[327253578,1715931216772,224.45180395,0.00010959,2]
[327253579,1715931237799,224.45180395,0.00010959,2]
[327253580,1715931252790,224.45180395,0.00010959,2]
[327253581,1715931270801,224.45180395,0.00010959,2]
[327253582,1715931292790,232.72713065,0.00010959,2]
[327253583,1715931317631,24900.0,0.00014142,2]
[327253584,1715931330235,796.9387861,0.00014141,2]
[327253585,1715931406436,22825.1359876,0.00014195,2]
[327253586,1715931422697,1828.9247647,0.00014134,2]
[327253588,1715931516669,154.7215013,9.999e-05,2]
[327253589,1715931526031,886.51657925,0.00014931,2]
[327253590,1715931531498,1157.40033743,9.999e-05,2]
[327253591,1715931548384,154.7215013,9.999e-05,2]
[327253592,1715931550831,521.21402222,9.999e-05,2]
[327253593,1715931553321,521.21402222,9.999e-05,2]
[327253594,1715931555844,521.21402222,9.999e-05,2]
[327253595,1715931557450,1581.20220046,9.999e-05,2]
[327253596,1715931557655,410.4004372,9.999e-05,2]
[327253597,1715931560369,521.21402222,9.999e-05,2]
[327253598,1715931572342,370.90420451,9.999e-05,2]
[327253599,1715931583966,154.7215013,9.999e-05,2]
[327253600,1715931585264,250.0,0.00014027,2]
[327253601,1715931593331,198.655842,0.00014027,2]
[327253602,1715931597828,283.54671049,0.000137,2]
[327253603,1715931630023,618.609816,0.00014047,2]
[327253604,1715931710926,775.7020068,0.00014923,2]
[327253605,1715931730171,1280.6768708,0.00014017,2]
[327253606,1715931901197,678.73925595,0.00014919,2]
[327253607,1715931911232,154.7215013,0.00015,2]
[327253608,1715931913345,283.54671049,0.00015,2]
[327253609,1715931915426,154.7215013,0.00015,2]
[327253611,1715931918875,521.21402222,0.00015,2]
[327253612,1715931940486,1581.20220046,0.00015,2]
[327253613,1715931942168,2465.30895012,0.00015,2]
[327253614,1715931942200,9558.14823448,0.00015,2]
[327253615,1715931949481,1324.558483,0.00014187,2]
[327253616,1715931956172,2465.30895012,0.00015,2]
[327253617,1715931958176,9558.14823448,0.00015,2]
[327253618,1715931958490,1587.5816633,0.00015,2]
[327253619,1715931961362,6144.4,0.00015,2]
[327253620,1715931976178,2465.30895012,0.00015,2]
[327253621,1715931980234,9558.14823448,0.00015,2]
[327253622,1715931981934,283.54671049,0.00015,2]
[327253623,1715931984245,154.7215013,0.00015,2]
[327253624,1715931988723,1157.40033743,9.999e-05,2]
[327253625,1715931992182,2465.30895012,0.00014999,2]
[327253626,1715931998192,9558.14823448,0.00014999,2]
[327253627,1715932000762,233.4354961,0.00015,2]
[327253628,1715932017881,370.90420451,9.999e-05,2]
[327253629,1715932033522,154.7215013,9.999e-05,2]
[327253630,1715932070744,350.478566,0.00015,2]
[327253631,1715932151095,-369.30860012,0.00015001,2]
[327253665,1715932232172,-155.32747837,0.00015004,2]
[327253666,1715932232182,-2465.30895012,0.00015022,2]
[327253667,1715932232192,-410.12965468,0.00015023,2]
[327253668,1715932232201,-371.98599743,0.00015127,2]
[327253669,1715932232210,-155.35333554,0.00015127,2]
[327253670,1715932232219,-3067.44181582,0.00015127,2]
[327253717,1715932238278,-17175.20455076,0.00015127,2]
[327253719,1715932238289,-407.83281781,0.00015128,2]
[327253721,1715932238298,-4173.93561961,0.00015128,2]
[327253723,1715932238308,-11050.87116823,0.0001513,2]
[327253725,1715932238318,-297.75520547,0.00015249,2]
[327253727,1715932238328,-395.5956337,0.0001525,2]
[327253729,1715932238337,-1084.04764886,0.0001525,2]
[327253731,1715932238346,-327.64942245,0.00015251,2]
[327253733,1715932238356,-155.75234196,0.00015253,2]
[327253736,1715932238366,-155.85764399,0.00015253,2]
[327253740,1715932238377,-8457.04150213,0.00015253,2]
[327253744,1715932238387,-24900.0,0.00015488,2]
[327253747,1715932238396,-238.16465017,0.00015679,2]
[327253751,1715932238405,-272.64950982,0.00015779,2]
[327253755,1715932238414,-6081.8375463,0.00016254,2]
[327253758,1715932238423,-238.16465017,0.00016255,2]
[327253761,1715932238432,-155.06203914,0.00016437,2]
[327253764,1715932238442,-803.06603636,0.00016437,2]
[327253767,1715932238452,-492.70299531,0.00016437,2]
[327253770,1715932238461,-465.86744219,0.00016438,2]
[327253773,1715932238470,-500.0,0.00016438,2]
[327253776,1715932238480,-592.07690105,0.00016438,2]
[327253779,1715932238490,-500.0,0.00016438,2]
[327253782,1715932238499,-501.07302483,0.00016438,2]
[327253785,1715932238508,-501.10774924,0.00016438,2]
[327253787,1715932238518,-500.0,0.00016438,2]
[327253789,1715932238527,-500.0,0.00016438,2]
[327253791,1715932238537,-638.8591198,0.00016438,2]
[327253793,1715932238546,-500.0,0.00016438,2]
[327253795,1715932238555,-500.0,0.00016438,2]
[327253797,1715932238565,-500.0,0.00016438,2]
[327253799,1715932238575,-500.0,0.00016438,2]
[327253801,1715932238584,-405.55454161,0.00016438,2]
[327253803,1715932238594,-500.0,0.00016438,2]
[327253805,1715932238603,-500.0,0.00016438,2]
[327253807,1715932238612,-500.0,0.00016438,2]
[327253809,1715932238622,-500.0,0.00016438,2]
[327253811,1715932238631,-500.0,0.00016438,2]
[327253813,1715932238640,-500.0,0.00016438,2]
[327253815,1715932238650,-504.68756784,0.00016438,2]
[327253817,1715932238659,-500.0,0.00016438,2]
[327253819,1715932238668,-500.0,0.00016438,2]
[327253821,1715932238678,-500.0,0.00016438,2]
[327253823,1715932238687,-500.0,0.00016438,2]
[327253825,1715932238696,-500.0,0.00016438,2]
[327253827,1715932238705,-500.0,0.00016438,2]
[327253829,1715932238719,-500.0,0.00016438,2]
[327253831,1715932238728,-500.0,0.00016438,2]
[327253833,1715932238736,-230.00898889,0.00016438,2]
[327253835,1715932238747,-1621.63,0.00016438,2]
[327253837,1715932238756,-590.46,0.00016438,2]
[327253839,1715932238765,-500.0,0.00016438,2]
[327253841,1715932238774,-766.11,0.00016438,2]
[327253843,1715932238784,-500.0,0.00016438,2]
[327253845,1715932238796,-500.0,0.00016438,2]
[327253847,1715932238806,-500.0,0.00016438,2]
[327253849,1715932238815,-500.0,0.00016438,2]
[327253850,1715932238825,-500.0,0.00016438,2]
[327253853,1715932238837,-500.0,0.00016438,2]
[327253854,1715932238846,-500.0,0.00016438,2]
[327253856,1715932238855,-2523.77,0.00016438,2]
[327253858,1715932238864,-1626.47,0.00016438,2]
[327253860,1715932238875,-500.0,0.00016438,2]
[327253862,1715932238884,-500.0,0.00016438,2]
[327253864,1715932238895,-541.91510578,0.00016438,2]
[327253866,1715932238904,-500.0,0.00016438,2]
[327253868,1715932238913,-500.0,0.00016438,2]
[327253870,1715932238924,-500.0,0.00016438,2]
[327253871,1715932238933,-814.73,0.00016438,2]
[327253872,1715932238944,-500.0,0.00016438,2]
[327253873,1715932238955,-500.0,0.00016438,2]
[327253874,1715932238965,-500.0,0.00016438,2]
[327253875,1715932238974,-6887.0,0.00016438,2]
[327253876,1715932238983,-500.0,0.00016438,2]
[327253877,1715932238993,-500.0,0.00016712,2]
[327253878,1715932239002,-500.0,0.00016712,2]
[327253879,1715932239012,-500.0,0.00016712,2]
[327253880,1715932239022,-500.0,0.00016712,2]
[327253881,1715932239031,-500.0,0.00016712,2]
[327253882,1715932239040,-500.0,0.00016712,2]
[327253883,1715932239050,-500.0,0.00016712,2]
[327253884,1715932239059,-500.0,0.00016712,2]
[327253885,1715932239069,-500.0,0.00016712,2]
[327253886,1715932239079,-500.0,0.00016712,2]
[327253887,1715932239088,-500.0,0.00016712,2]
[327253888,1715932239097,-500.0,0.00016712,2]
[327253889,1715932239107,-500.0,0.00016712,2]
[327253890,1715932239116,-1621.63,0.00016712,2]
[327253891,1715932239128,-590.46,0.00016712,2]
[327253892,1715932239137,-500.0,0.00016712,2]
[327253893,1715932239146,-766.11,0.00016712,2]
[327253894,1715932239155,-403.78,0.00016712,2]
[327253895,1715932239165,-500.0,0.00016712,2]
[327253896,1715932239174,-500.0,0.00016712,2]
[327253897,1715932239184,-500.0,0.00016712,2]
[327253898,1715932239193,-500.0,0.00016712,2]
[327253899,1715932239203,-2523.77,0.00016712,2]
[327253900,1715932239213,-1626.47,0.00016712,2]
[327253901,1715932239223,-283.26857653,0.00016712,2]
[327253902,1715932239545,-216.73142347,0.00016712,2]
[327253903,1715932239554,-500.0,0.00016712,2]
[327253904,1715932239564,-500.0,0.00016712,2]
[327253905,1715932239573,-500.0,0.00016712,2]
[327253906,1715932239583,-500.0,0.00016712,2]
[327253907,1715932239592,-814.73,0.00016712,2]
[327253908,1715932239601,-500.0,0.00016712,2]
[327253909,1715932239611,-500.0,0.00016712,2]
[327253910,1715932239620,-500.0,0.00016712,2]
[327253911,1715932239631,-6887.0,0.00016712,2]
[327253913,1715932239640,-500.0,0.00016712,2]
[327253915,1715932239649,-238.16465017,0.00016831,2]
[327253917,1715932239659,-500.0,0.00016986,2]
[327253919,1715932239668,-500.0,0.00016986,2]
[327253920,1715932239678,-533.98,0.00016986,2]
[327253921,1715932239688,-453.02757533,0.00016986,2]
[327253922,1715932239697,-500.0,0.00016986,2]
[327253923,1715932239707,-500.0,0.00016986,2]
[327253925,1715932239722,-500.0,0.00016986,2]
[327253926,1715932239731,-500.0,0.00016986,2]
[327253927,1715932239741,-500.0,0.00016986,2]
[327253928,1715932239752,-500.0,0.00016986,2]
[327253929,1715932239762,-500.0,0.00016986,2]
[327253930,1715932239771,-500.0,0.00016986,2]
[327253931,1715932239780,-500.0,0.00016986,2]
[327253932,1715932239789,-1621.63,0.00016986,2]
[327253933,1715932239801,-590.46,0.00016986,2]
[327253934,1715932239811,-500.0,0.00016986,2]
[327253935,1715932239822,-766.11,0.00016986,2]
[327253936,1715932239831,-500.0,0.00016986,2]
[327253937,1715932239840,-500.0,0.00016986,2]
[327253938,1715932239850,-500.0,0.00016986,2]
[327253939,1715932239859,-500.0,0.00016986,2]
[327253940,1715932239868,-2523.77,0.00016986,2]
[327253941,1715932239879,-1626.47,0.00016986,2]
[327253942,1715932239889,-500.0,0.00016986,2]
[327253943,1715932239898,-500.0,0.00016986,2]
[327253944,1715932239907,-500.0,0.00016986,2]
[327253945,1715932239917,-500.0,0.00016986,2]
[327253946,1715932239927,-500.0,0.00016986,2]
[327253947,1715932239936,-73.83895403,0.00016986,2]
[327253955,1715932240375,-159.71643667,0.00015126,2]
[327253957,1715932240384,-500.0,0.00016438,2]
[327253959,1715932240393,-500.0,0.00016712,2]
[327253961,1715932240402,-394.43946796,0.00016986,2]
[327254107,1715932246289,-500.0,0.00016438,2]
[327254109,1715932246299,-500.0,0.00016712,2]
[327254111,1715932246309,-346.45157801,0.00016986,2]
[327254113,1715932246318,-374.57454051,0.00016986,2]
[327254115,1715932246330,-500.0,0.00016986,2]
[327254117,1715932246339,-500.0,0.00016986,2]
[327254119,1715932246348,-4615.76520872,0.00016986,2]
[327254308,1715932253365,10000.0,0.00023,30]
[327254309,1715932274892,1555.0,0.00023,30]
[327254311,1715932681218,159.71643667,0.000137,2]
[327254312,1715932785195,158.49484679,9.999e-05,2]
[327254313,1715932875789,22023.3124289,0.00014951,2]
[327254314,1715933116775,159.71643667,0.000137,2]
[327254315,1715933172622,1000.0,0.00023,30]
[327254316,1715933252160,-897.62754,0.0001518,2]
[327254317,1715933252181,-932.27671008,0.00015306,2]
[327254318,1715933252203,-159.71643667,0.00016011,2]
[327254319,1715933252223,-161.00975163,0.00016012,2]
[327254320,1715933252242,-64.95130247,0.00016012,2]
[327254321,1715933331122,330.9155996,9.999e-05,2]
[327254344,1715933432764,-161.00975163,0.00016011,2]
[327254345,1715933432774,-586.20642854,0.00016012,2]
[327254346,1715933432785,-413.786,0.00016012,2]
[327254347,1715933432796,-5587.50408146,0.00016012,2]
[327254348,1715933432806,-231.27642825,0.00016111,2]
[327254349,1715933432815,-159.6965913,0.00016111,2]
[327254350,1715933432825,-250.72581895,0.00016111,2]
[327254351,1715933432835,-2595.37774588,0.00016112,2]
[327254352,1715933432844,-189.55440765,0.00016337,2]
[327254353,1715933432854,-248.8106347,0.00016434,2]
[327254354,1715933432863,-332.06735858,0.00016435,2]
[327254355,1715933432873,-155.04245259,0.00016436,2]
[327254356,1715933432882,-1682.5168572,0.00016436,2]
[327254357,1715933432891,-5155.84828199,0.00016436,2]
[327254358,1715933432900,-214.67725249,0.00016436,2]
[327254359,1715933432912,-3060.26446828,0.00016436,2]
[327254360,1715933432922,-287.34006916,0.00016436,2]
[327254361,1715933432931,-1401.61857641,0.00016437,2]
[327254362,1715933432940,-500.0,0.00016438,2]
[327254363,1715933432949,-500.0,0.00016438,2]
[327254364,1715933432959,-500.0,0.00016438,2]
[327254365,1715933432968,-363.20259724,0.00016438,2]
[327254366,1715933432978,-500.0,0.00016438,2]
[327254367,1715933432987,-500.0,0.00016438,2]
[327254368,1715933432997,-500.0,0.00016438,2]
[327254369,1715933433006,-500.0,0.00016438,2]
[327254370,1715933433015,-500.0,0.00016438,2]
[327254371,1715933433024,-1418.93,0.00016438,2]
[327254372,1715933433034,-516.65,0.00016438,2]
[327254373,1715933433043,-670.35,0.00016438,2]
[327254374,1715933433053,-500.0,0.00016438,2]
[327254375,1715933433062,-500.0,0.00016438,2]
[327254376,1715933433072,-500.0,0.00016438,2]
[327254377,1715933433088,-500.0,0.00016438,2]
[327254378,1715933433097,-500.0,0.00016438,2]
[327254379,1715933433106,-500.0,0.00016438,2]
[327254380,1715933433116,-1423.16,0.00016438,2]
[327254381,1715933433126,-2208.3,0.00016438,2]
[327254382,1715933433135,-500.0,0.00016438,2]
[327254383,1715933433144,-500.0,0.00016438,2]
[327254384,1715933433155,-500.0,0.00016438,2]
[327254385,1715933433168,-500.0,0.00016438,2]
[327254386,1715933433177,-412.92123133,0.00016438,2]
[327254474,1715933438535,-87.07876867,0.00016438,2]
[327254475,1715933438544,-500.0,0.00016438,2]
[327254477,1715933438553,-505.32350337,0.00016438,2]
[327254479,1715933438563,-501.05433035,0.00016438,2]
[327254481,1715933438572,-1244.35,0.00016438,2]
[327254483,1715933438582,-6120.76,0.00016438,2]
[327254485,1715933438591,-500.0,0.00016438,2]
[327254487,1715933438600,-500.0,0.00016438,2]
[327254488,1715933438609,-304.9623392,0.00016438,2]
[327254490,1715933438618,-500.0,0.00016438,2]
[327254492,1715933438627,-729.33,0.00016438,2]
[327254494,1715933438637,-501.78677475,0.00016438,2]
[327254496,1715933438646,-502.21056491,0.00016438,2]
[327254498,1715933438655,-501.37226048,0.00016438,2]
[327254500,1715933438667,-500.0,0.00016438,2]
[327254501,1715933438675,-500.83719873,0.00016438,2]
[327254503,1715933438684,-500.0,0.00016438,2]
[327254505,1715933438694,-500.0,0.00016438,2]
[327254507,1715933438703,-500.0,0.00016438,2]
[327254509,1715933438711,-500.0,0.00016438,2]
[327254511,1715933438720,-500.0,0.00016438,2]
[327254513,1715933438730,-158.77643346,0.00016612,2]
[327254515,1715933438739,-500.0,0.00016712,2]
[327254517,1715933438748,-474.76837896,0.00016712,2]
[327254518,1715933438757,-529.92400365,0.00016712,2]
[327254520,1715933438767,-500.0,0.00016712,2]
[327254522,1715933438777,-500.0,0.00016712,2]
[327254524,1715933438785,-500.0,0.00016712,2]
[327254526,1715933438794,-500.0,0.00016712,2]
[327254528,1715933438804,-542.31176697,0.00016712,2]
[327254582,1715933440826,-876.61823303,0.00016712,2]
[327254583,1715933440836,-516.65,0.00016712,2]
[327254584,1715933440846,-670.35,0.00016712,2]
[327254585,1715933440855,-500.0,0.00016712,2]
[327254586,1715933440865,-500.0,0.00016712,2]
[327254587,1715933440874,-500.0,0.00016712,2]
[327254588,1715933441033,-500.0,0.00016712,2]
[327254589,1715933441043,-600.10153843,0.00016712,2]
[327254590,1715933441053,-500.0,0.00016712,2]
[327254591,1715933441063,-1423.16,0.00016712,2]
[327254592,1715933441072,-2208.3,0.00016712,2]
[327254593,1715933441086,-500.0,0.00016712,2]
[327254594,1715933441095,-500.0,0.00016712,2]
[327254595,1715933441105,-500.0,0.00016712,2]
[327254596,1715933441114,-500.0,0.00016712,2]
[327254597,1715933441124,-500.0,0.00016712,2]
[327254598,1715933441134,-1244.35,0.00016712,2]
[327254599,1715933441143,-2928.59277246,0.00016712,2]
[327254600,1715933441155,-3192.16722754,0.00016712,2]
[327254601,1715933441169,-500.0,0.00016712,2]
[327254602,1715933441178,-500.0,0.00016712,2]
[327254603,1715933441187,-729.33,0.00016712,2]
[327254604,1715933441197,-500.0,0.00016712,2]
[327254605,1715933441206,-500.0,0.00016712,2]
[327254606,1715933441215,-500.0,0.00016712,2]
[327254607,1715933441225,-500.0,0.00016712,2]
[327254608,1715933441235,-416.98047207,0.00016959,2]
[327254609,1715933441244,-3823.65887751,0.00016985,2]
[327254610,1715933441253,-500.0,0.00016986,2]
[327254611,1715933441263,-500.0,0.00016986,2]
[327254612,1715933441272,-500.0,0.00016986,2]
[327254613,1715933441281,-500.0,0.00016986,2]
[327254614,1715933441291,-500.0,0.00016986,2]
[327254615,1715933441300,-1418.93,0.00016986,2]
[327254616,1715933441309,-516.65,0.00016986,2]
[327254617,1715933441318,-670.35,0.00016986,2]
[327254618,1715933441327,-500.0,0.00016986,2]
[327254619,1715933441337,-500.0,0.00016986,2]
[327254620,1715933441346,-500.0,0.00016986,2]
[327254621,1715933441355,-500.0,0.00016986,2]
[327254622,1715933441364,-500.0,0.00016986,2]
[327254623,1715933441374,-1423.16,0.00016986,2]
[327254624,1715933441383,-1932.23387607,0.00016986,2]
[327254625,1715933441395,-276.06612393,0.00016986,2]
[327254626,1715933441404,-500.0,0.00016986,2]
[327254627,1715933441413,-500.0,0.00016986,2]
[327254628,1715933441425,-220.57931282,0.00016986,2]
[327254665,1715933443566,-279.42068718,0.00016986,2]
[327254666,1715933443575,-500.0,0.00016986,2]
[327254668,1715933443585,-281.37931282,0.00016986,2]
[327254710,1715933446339,-218.62068718,0.00016986,2]
[327254712,1715933446349,-1244.35,0.00016986,2]
[327254714,1715933446358,-1858.71608465,0.00016986,2]
[327254754,1715933872626,528.36551602,9.999e-05,2]
[327254755,1715934186942,154.70605849,9.999e-05,2]
[327254758,1715934345375,154.82968734,9.999e-05,2]